bitfinex/quotes_SOLUSD_20250917
["timestamp","ask_amount","ask_price","bid_price","bid_amount"]
[1758148825239,42.23736062,244.67,244.66,0.03]
[1758148825631,40.54991715,244.67,244.66,0.03]
[1758148826724,44.63705492,244.67,244.66,0.03]
[1758148826925,41.56736062,244.67,244.66,0.03]
[1758148828138,1.97176661,244.67,244.66,0.03]
[1758148828836,27.97176661,244.67,244.66,0.03]
[1758148829134,1.97176661,244.67,244.66,0.03]
[1758148829331,1.68744347,244.67,244.66,0.03]
[1758148829534,13.59559401,244.73,244.66,0.72]
[1758148829737,1.68744347,244.7,244.66,0.72]
[1758148830816,1.68744347,244.67,244.66,0.03]
[1758148831330,2.35744347,244.67,244.66,0.03]
[1758148831631,2.64176661,244.67,244.66,0.03]
[1758148832026,4.08672432,244.7,244.66,0.03]
[1758148832226,1.68744347,244.68,244.66,0.03]
[1758148833616,1.68744347,244.7,244.66,0.03]
[1758148833813,1.68744347,244.7,244.66,0.7]
[1758148834232,2.34744347,244.69,244.66,0.03]
[1758148834435,1.68744347,244.67,244.66,0.03]
[1758148834835,0.66,244.67,244.66,0.03]
[1758148835025,14.53991715,244.67,244.66,0.03]
[1758148835340,16.22736062,244.67,244.66,0.03]
[1758148835540,1.68744347,244.67,244.66,0.03]
[1758148837746,5.77422859,244.7,244.66,0.03]
[1758148837936,4.08678512,244.7,244.66,0.03]
[1758148838134,1.68744347,244.68,244.66,0.03]
[1758148839160,6.43442799,244.68,244.66,0.03]
[1758148839453,1.68744347,244.68,244.66,0.03]
[1758148840241,5.77449609,244.68,244.66,0.03]
[1758148840436,0.66,244.67,244.66,0.03]
[1758148840650,4.74713777,244.67,244.66,0.03]
[1758148841437,6.43458124,244.67,244.66,0.03]
[1758148843353,5.77458124,244.67,244.66,0.03]
[1758148844940,6.43458124,244.67,244.66,0.03]
[1758148845966,6.73581832,244.67,244.66,0.03]
[1758148846176,7.39581832,244.67,244.66,0.03]
[1758148847868,4.74713777,244.67,244.66,0.03]
[1758148848163,6.73581832,244.67,244.66,0.03]
[1758148848464,7.39581832,244.67,244.66,0.03]
[1758148848842,4.08713777,244.67,244.66,0.03]
[1758148849043,6.73581832,244.67,244.66,0.03]
[1758148850037,7.39581832,244.67,244.66,0.03]
[1758148851355,4.74713777,244.67,244.66,0.03]
[1758148851550,7.39581832,244.67,244.66,0.03]
[1758148851870,6.73581832,244.67,244.66,0.03]
[1758148852650,7.39581832,244.67,244.66,0.03]
[1758148854158,17.61366276,244.67,244.63,0.03]
[1758148854466,42.5285977,244.64,244.63,0.03]
[1758148854854,43.1885977,244.64,244.63,0.03]
[1758148855172,43.1885977,244.64,244.59,0.2]
[1758148855173,0.28432314,244.63,244.59,0.2]
[1758148855379,2.64868055,244.6,244.59,0.2]
[1758148855757,6.73698799,244.6,244.59,0.2]
[1758148855968,2.64868055,244.6,244.59,0.2]
[1758148856476,6.73698799,244.6,244.59,0.2]
[1758148857855,7.40698799,244.6,244.59,0.2]
[1758148858253,21.28690514,244.6,244.59,0.2]
[1758148858655,26.0,244.53,244.51,0.03]
[1758148858855,49.4285977,244.52,244.51,0.03]
[1758148859472,2.64868055,244.52,244.51,0.03]
[1758148859677,16.5285977,244.52,244.51,0.03]
[1758148860067,21.28824271,244.52,244.51,0.03]
[1758148860267,33.59031934,244.52,244.51,0.03]
[1758148861683,39.59559401,244.49,244.48,0.03]
[1758148861867,26.0,244.49,244.48,0.03]
[1758148862189,32.73882738,244.49,244.48,0.03]
[1758148862492,4.75954658,244.53,244.48,0.03]
[1758148862779,2.64868055,244.49,244.48,0.73]
[1758148864187,2.64868055,244.49,244.48,0.03]
[1758148864686,10.22411066,244.53,244.48,0.73]
[1758148864892,2.64868055,244.49,244.48,0.73]
[1758148865860,2.64868055,244.49,244.48,0.03]
[1758148865861,42.5285977,244.49,244.48,0.03]
[1758148866070,43.2285977,244.49,244.48,0.03]
[1758148866298,2.64868055,244.56,244.48,0.03]
[1758148866485,17.68502498,244.54,244.48,0.03]
[1758148866800,2.64868055,244.49,244.48,0.03]
[1758148867880,2.64868055,244.5,244.48,0.03]
[1758148868275,4.08907666,244.56,244.49,0.7]
[1758148868478,2.64868055,244.58,244.49,26.7]
[1758148868678,2.64868055,244.58,244.5,0.7]
[1758148868987,2.64868055,244.56,244.5,0.7]
[1758148869576,12.95577544,244.66,244.51,6.73849282]
[1758148869774,2.64868055,244.61,244.54,26.0]
[1758148869990,2.64868055,244.61,244.55,0.7]
[1758148870676,2.64868055,244.59,244.55,0.7]
[1758148870991,2.64868055,244.57,244.52,26.7]
[1758148871187,4.08817749,244.61,244.52,26.0]
[1758148871488,2.64868055,244.56,244.53,0.7]
[1758148871693,2.64868055,244.56,244.48,0.03]
[1758148871875,2.64868055,244.49,244.48,0.03]
[1758148872270,26.28432314,244.53,244.48,0.03]
[1758148872490,2.64868055,244.49,244.48,0.03]
[1758148873402,3.34868055,244.49,244.48,0.03]
[1758148873768,6.3972498,244.49,244.48,0.03]
[1758148875504,13.59559401,244.55,244.48,0.73]
[1758148875699,6.3972498,244.52,244.48,0.73]
[1758148876793,6.3972498,244.52,244.48,0.03]
[1758148877686,6.3972498,244.52,244.48,0.73]
[1758148878275,6.3972498,244.5,244.48,0.03]
[1758148879174,7.0972498,244.5,244.48,0.03]
[1758148879400,13.65559401,244.56,244.48,0.73]
[1758148879401,0.7,244.55,244.48,0.73]
[1758148879576,6.3972498,244.52,244.48,0.73]
[1758148879780,6.3972498,244.52,244.48,4.82029461]
[1758148879987,6.3972498,244.54,244.48,30.82029461]
[1758148880899,4.78920921,244.55,244.48,30.82029461]
[1758148881200,6.3972498,244.54,244.48,30.82029461]
[1758148882093,10.48659676,244.54,244.48,30.82029461]
[1758148882300,10.48659676,244.54,244.48,26.73]
[1758148882684,10.48659676,244.54,244.48,30.82028214]
[1758148883083,10.48659676,244.54,244.48,0.03]
[1758148883500,0.7,244.53,244.48,0.03]
[1758148884190,6.3972498,244.54,244.48,0.03]
[1758148884405,0.7,244.53,244.48,0.03]
[1758148884605,6.3972498,244.54,244.48,0.03]
[1758148885401,4.84906676,244.56,244.48,0.03]
[1758148885704,6.3972498,244.55,244.48,0.03]
[1758148886895,4.84906676,244.56,244.48,0.03]
[1758148887099,6.3972498,244.54,244.48,0.03]
[1758148887985,7.0972498,244.54,244.48,0.03]
[1758148888906,11.18669666,244.54,244.48,0.03]
[1758148889105,4.78944686,244.54,244.48,0.03]
[1758148889310,11.18669666,244.54,244.48,0.03]
[1758148890384,0.06,244.56,244.48,0.03]
[1758148890608,0.06,244.56,244.51,6.3972498]
[1758148891086,0.06,244.56,244.52,0.7]
[1758148891284,0.06,244.56,244.53,0.7]
[1758148891695,0.06,244.56,244.54,0.7]
[1758148891899,0.06,244.56,244.54,7.0972498]
[1758148892090,0.06,244.56,244.55,0.7]
[1758148892481,0.06,244.56,244.55,4.78914332]
[1758148892794,0.06,244.56,244.55,32.88]
[1758148893996,0.06,244.56,244.54,26.0]
[1758148894781,0.06,244.56,244.54,32.73877503]
[1758148895506,0.06,244.56,244.54,65.61877503]
[1758148896409,0.06,244.56,244.54,62.96918502]
[1758148896700,0.06,244.56,244.54,32.88]
[1758148898309,0.06,244.56,244.55,32.88]
[1758148900695,0.06,244.56,244.54,2.64959001]
[1758148900898,0.06,244.56,244.55,32.88]
[1758148901095,0.06,244.56,244.54,2.64959001]
[1758148901306,0.06,244.56,244.55,32.88]
[1758148902614,0.06,244.59,244.55,38.84918002]
[1758148902797,0.06,244.59,244.58,32.73823176]
[1758148903211,0.06,244.59,244.58,33.6925549]
[1758148903509,0.06,244.59,244.58,35.73838169]
[1758148904813,0.06,244.59,244.58,68.59838169]
[1758148905411,1e-08,244.59,244.58,82.1939757]
[1758148908010,1e-08,244.61,244.58,91.45982919]
[1758148908221,1e-08,244.61,244.6,15.57375627]
[1758148908420,0.78,244.69,244.66,1.69383912]
[1758148908623,0.72,244.68,244.66,1.69383912]
[1758148908915,0.72,244.67,244.66,1.69383912]
[1758148909219,0.72,244.67,244.66,34.55383912]
[1758148909795,0.06,244.69,244.66,38.64102342]
[1758148910006,0.06,244.69,244.67,1.69383912]
[1758148910216,0.72,244.68,244.66,34.55383912]
[1758148910399,0.72,244.67,244.6,1.69383912]
[1758148910599,0.72,244.67,244.61,32.86]
[1758148910600,0.72,244.66,244.61,32.86]
[1758148910796,0.06,244.64,244.61,32.86]
[1758148911001,0.72,244.63,244.61,32.86]
[1758148911515,0.06,244.64,244.62,1.69383912]
[1758148911724,0.06,244.64,244.63,1.69383912]
[1758148912021,0.06,244.64,244.63,5.78164519]
[1758148912515,0.78,244.64,244.63,4.08780607]
[1758148912711,0.78,244.64,244.61,32.86]
[1758148912712,0.78,244.64,244.61,34.55383912]
[1758148912910,0.06,244.64,244.61,32.86]
[1758148913240,0.72,244.63,244.62,32.84]
[1758148913704,0.06,244.64,244.62,32.84]
[1758148914025,0.06,244.64,244.62,36.9279162]
[1758148914231,0.78,244.64,244.62,36.9279162]
[1758148914907,0.78,244.64,244.63,1.69383912]
[1758148914908,0.06,244.64,244.63,1.69383912]
[1758148915137,0.06,244.64,244.62,38.62175532]
[1758148915430,0.78,244.64,244.62,38.62175532]
[1758148915638,0.78,244.64,244.62,36.9279162]
[1758148917502,0.78,244.64,244.62,4.0879162]
[1758148917702,0.78,244.64,244.63,32.84]
[1758148918626,0.78,244.64,244.63,36.92780607]
[1758148919412,0.06,244.64,244.63,36.92780607]
[1758148920536,0.74,244.64,244.63,32.84]
[1758148922829,0.74,244.64,244.63,36.92780607]
[1758148923213,0.74,244.64,244.63,32.84]
[1758148923408,0.06,244.64,244.63,32.84]
[1758148923613,0.06,244.64,244.63,36.92780607]
[1758148924410,0.06,244.64,244.63,32.84]
[1758148924732,0.06,244.64,244.58,4.11853927]
[1758148924733,0.73,244.64,244.58,4.11853927]
[1758148924931,1.69383912,244.62,244.58,0.03]
[1758148925432,1.69383912,244.6,244.59,32.82]
[1758148925631,2.36383912,244.6,244.59,32.82]
[1758148925820,0.67,244.6,244.59,32.82]
[1758148926016,0.67,244.6,244.58,0.03]
[1758148926225,0.67,244.6,244.59,32.82]
[1758148927710,0.67,244.6,244.58,0.03]
[1758148927919,4.75840702,244.6,244.58,0.03]
[1758148928227,15.57375627,244.59,244.58,0.03]
[1758148928430,1.69383912,244.56,244.55,0.03]
[1758148928810,6.45281524,244.56,244.55,0.03]
[1758148929433,20.33273239,244.56,244.55,0.03]
[1758148930441,0.67,244.61,244.55,0.03]
[1758148930618,0.06,244.62,244.55,0.71]
[1758148930820,0.06,244.62,244.57,4.08880892]
[1758148931026,0.06,244.62,244.59,1.69383912]
[1758148931924,0.06,244.62,244.6,35.60266986]
[1758148932331,0.06,244.62,244.61,0.68]
[1758148932518,0.06,244.62,244.61,1.69383912]
[1758148932832,0.06,244.62,244.61,32.82]
[1758148933035,0.06,244.62,244.61,34.51383912]
[1758148934150,0.06,244.62,244.61,35.19383912]
[1758148934318,0.06,244.62,244.61,34.51383912]
[1758148934730,0.06,244.64,244.62,13.59559401]
[1758148934933,0.06,244.64,244.63,6.47474893]
[1758148935146,0.06,244.64,244.63,7.15474893]
[1758148935519,0.06,244.65,244.64,39.87991715]
[1758148935726,0.06,244.74,244.64,39.87991715]
[1758148935727,0.06,244.74,244.68,8.4691956]
[1758148935921,0.06,244.74,244.68,41.2891956]
[1758148936142,0.06,244.74,244.68,53.89566493]
[1758148937039,0.06,244.74,244.68,57.98263566]
[1758148938725,0.06,244.74,244.68,51.20727918]
[1758148940532,0.06,244.74,244.68,58.67565587]
[1758148941029,0.06,244.74,244.68,60.31194885]
[1758148941338,1e-08,244.69,244.68,73.90754286]
[1758148941839,0.06,244.74,244.71,26.0]
[1758148942037,0.06,244.74,244.71,60.49383912]
[1758148942229,0.06,244.74,244.71,60.90248608]
[1758148942424,0.06,244.74,244.71,61.54248608]
[1758148942957,0.06,244.74,244.72,0.28432314]
[1758148943151,0.06,244.74,244.73,35.13383912]
[1758148943451,0.06,244.74,244.73,53.09989201]
[1758148943858,0.06,244.74,244.73,54.73578347]
[1758148944039,1e-08,244.74,244.73,54.73578347]
[1758148945145,1e-08,244.74,244.73,53.04194435]
[1758148945350,1e-08,244.74,244.73,54.73578347]
[1758148945734,1e-08,244.74,244.73,21.29578347]
[1758148945936,1e-08,244.74,244.73,54.07578347]
[1758148946247,1e-08,244.74,244.73,64.55997486]
[1758148946248,0.67000001,244.74,244.73,64.55997486]
[1758148946744,0.67000001,244.74,244.73,31.77997486]
[1758148946952,0.67000001,244.74,244.73,64.55997486]
[1758148947126,1e-08,244.74,244.73,64.55997486]
[1758148947527,1e-08,244.74,244.73,31.77997486]
[1758148947735,0.67000001,244.74,244.73,58.78]
[1758148947938,0.67000001,244.74,244.73,32.78]
[1758148948358,0.67000001,244.74,244.73,58.78]
[1758148948733,0.67000001,244.74,244.68,1.69383912]
[1758148948934,0.67,244.73,244.69,32.78]
[1758148949247,0.67,244.72,244.67,1.69383912]
[1758148949440,0.67,244.72,244.63,4.31547109]
[1758148949441,0.67,244.71,244.68,32.78]
[1758148949653,0.67,244.7,244.68,32.78]
[1758148949835,1.69383912,244.71,244.65,1.69383912]
[1758148949836,0.67,244.69,244.65,1.69383912]
[1758148950035,0.67,244.69,244.67,32.78]
[1758148950235,0.67,244.68,244.67,32.78]
[1758148950952,0.67,244.68,244.63,0.03]
[1758148951156,0.67,244.68,244.67,32.78]
[1758148951751,0.67,244.68,244.66,1.72383912]
[1758148951953,0.67,244.71,244.67,34.45383912]
[1758148952152,1e-08,244.74,244.71,26.0]
[1758148952448,1e-08,244.74,244.73,1.69383912]
[1758148953639,0.68000001,244.74,244.73,32.76]
[1758148954344,2.37383913,244.74,244.73,32.76]
[1758148954649,0.68000001,244.74,244.73,32.76]
[1758148957152,1e-08,244.74,244.73,37.17012682]
[1758148957340,1e-08,244.74,244.73,37.81012682]
[1758148957532,1e-08,244.74,244.73,4.41012682]
[1758148957730,1e-08,244.74,244.73,37.17012682]
[1758148957963,1e-08,244.74,244.73,41.25626256]
[1758148958263,1e-08,244.74,244.73,8.49626256]
[1758148958450,1e-08,244.74,244.7,10.21659174]
[1758148958451,5.09012683,244.74,244.66,27.66629298]
[1758148958644,5.09012683,244.74,244.67,32.76]
[1758148958645,4.41012682,244.71,244.67,32.76]
[1758148958849,0.68,244.7,244.67,32.76]
[1758148959044,0.68,244.69,244.67,32.76]
[1758148959249,0.68,244.68,244.67,32.76]
[1758148959456,0.68,244.71,244.67,32.76]
[1758148959759,0.68,244.7,244.67,32.76]
[1758148959965,0.68,244.69,244.67,32.76]
[1758148960257,4.41012682,244.72,244.67,32.76]
[1758148960460,0.68,244.68,244.67,32.76]
[1758148960764,0.68,244.71,244.67,32.76]
[1758148960959,1e-08,244.74,244.67,32.76]
[1758148960960,0.68,244.7,244.67,32.76]
[1758148961152,0.68,244.69,244.67,32.76]
[1758148961360,0.68,244.68,244.67,32.76]
[1758148962038,4.76697073,244.68,244.66,0.03]
[1758148962362,4.41012682,244.67,244.66,0.03]
[1758148962741,5.09012682,244.67,244.63,0.03]
[1758148962942,4.41012682,244.66,244.63,0.03]
[1758148963452,0.68,244.65,244.63,0.03]
[1758148963849,0.68,244.69,244.64,4.41012682]
[1758148964065,0.68,244.68,244.63,4.44012682]
[1758148964267,0.68,244.73,244.67,4.41012682]
[1758148964470,0.68,244.72,244.66,4.41012682]
[1758148964657,0.68,244.71,244.67,32.76]
[1758148964972,0.68,244.7,244.67,32.76]
[1758148965351,14.30089076,244.74,244.67,32.76]
[1758148965664,0.68,244.69,244.67,32.76]
[1758148966045,0.68,244.72,244.67,32.76]
[1758148966379,0.68,244.71,244.67,32.76]
[1758148966560,0.68,244.7,244.67,32.76]
[1758148966863,0.68,244.69,244.67,32.76]
[1758148968479,0.68,244.73,244.67,37.17012682]
[1758148968773,0.68,244.73,244.67,36.84711173]
[1758148968949,0.68,244.73,244.67,41.25723855]
[1758148969147,0.68,244.73,244.67,8.49723855]
[1758148969353,0.68,244.73,244.68,32.74]
[1758148969560,0.68,244.72,244.68,32.74]
[1758148969864,0.68,244.71,244.68,32.74]
[1758148970574,10.46949831,244.74,244.68,32.74]
[1758148970753,0.68,244.7,244.68,32.74]
[1758148971952,0.68,244.7,244.66,0.03]
[1758148971953,7.06352665,244.69,244.66,0.03]
[1758148972163,6.38352665,244.67,244.66,0.03]
[1758148972551,7.06352665,244.67,244.66,0.03]
[1758148972748,20.9434438,244.67,244.66,0.03]
[1758148972973,13.87991715,244.66,244.63,0.03]
[1758148973189,13.87991715,244.64,244.63,0.03]
[1758148973472,6.38352665,244.64,244.63,0.03]
[1758148973678,7.06352665,244.64,244.63,0.03]
[1758148974072,11.15116562,244.64,244.63,0.03]
[1758148980660,4.76763897,244.64,244.63,0.03]
[1758148980860,11.15116562,244.64,244.63,0.03]
[1758148981179,4.08738356,244.66,244.63,0.03]
[1758148981360,6.38352665,244.65,244.63,0.03]
[1758148981560,7.07352665,244.65,244.63,0.03]
[1758148981761,23.81270248,244.69,244.63,0.03]
[1758148981762,0.69,244.72,244.64,0.7]
[1758148981979,0.69,244.72,244.64,6.38352665]
[1758148981980,24.06559035,244.71,244.64,6.38352665]
[1758148982176,6.38352665,244.7,244.63,39.15352665]
[1758148982364,7.07352665,244.7,244.63,39.15352665]
[1758148982568,6.38352665,244.68,244.63,32.77]
[1758148982780,32.38352665,244.68,244.63,0.03]
[1758148983079,6.38352665,244.67,244.63,0.03]
[1758148984184,33.10352665,244.68,244.63,0.03]
[1758148984380,10.47066442,244.67,244.63,0.03]
[1758148984564,6.38352665,244.64,244.63,0.03]
[1758148985159,7.10352665,244.64,244.63,0.03]
[1758148986578,11.19116562,244.64,244.63,0.03]
[1758148987766,25.07108277,244.64,244.63,0.03]
[1758148988908,4.08745454,244.66,244.63,0.03]
[1758148989584,10.47098119,244.66,244.63,0.03]
[1758148990485,6.38352665,244.69,244.63,0.03]
[1758148990682,0.72,244.69,244.63,0.03]
[1758148990882,6.38352665,244.68,244.63,0.03]
[1758148991388,7.10352665,244.68,244.63,0.03]
[1758148991889,6.38352665,244.69,244.63,7.11352665]
[1758148992073,0.06,244.71,244.66,6.38352665]
[1758148992272,0.06,244.71,244.67,0.7]
[1758148992492,6.44352665,244.71,244.65,7.08352665]
[1758148992689,6.44352665,244.71,244.65,0.7]
[1758148992872,0.06,244.71,244.65,7.08352665]
[1758148993070,0.06,244.71,244.66,6.38352665]
[1758148993583,0.06,244.71,244.67,0.7]
[1758148994286,6.38352665,244.68,244.63,0.03]
[1758148994494,6.38352665,244.67,244.63,0.03]
[1758148995083,4.14653569,244.71,244.63,0.03]
[1758148995084,6.38352665,244.64,244.63,0.03]
[1758148995591,7.10352665,244.64,244.63,0.03]
[1758148995782,3.36956274,244.64,244.63,0.03]
[1758148995981,7.45720171,244.64,244.63,0.03]
[1758148996978,21.33711886,244.64,244.63,0.03]
[1758148998994,18.68755612,244.64,244.63,0.03]
[1758148999204,21.33711886,244.64,244.63,0.03]
[1758149000574,18.68755612,244.64,244.63,0.03]
[1758149000775,21.33711886,244.64,244.63,0.03]
[1758149001182,18.68755612,244.64,244.63,0.03]
[1758149001382,21.33711886,244.64,244.63,0.03]
[1758149005771,21.33711886,244.64,244.6,0.03]
[1758149005772,31.5562163,244.64,244.6,1e-08]
[1758149005983,42.52947989,244.61,244.6,1e-08]
[1758149006387,43.24947989,244.61,244.6,1e-08]
[1758149006584,40.59991715,244.61,244.6,1e-08]
[1758149006782,43.24947989,244.61,244.6,1e-08]
[1758149007502,47.33762019,244.61,244.6,1e-08]
[1758149008604,39.87991715,244.54,244.53,0.03]
[1758149008784,13.59559401,244.49,244.46,0.03]
[1758149008985,0.28432314,244.52,244.46,0.03]
[1758149008986,42.52947989,244.47,244.46,0.03]
[1758149009183,78.69749281,244.47,244.46,0.03]
[1758149009389,75.94947989,244.47,244.46,0.03]
[1758149009582,82.78422314,244.47,244.46,0.03]
[1758149010003,47.4346604,244.47,244.46,0.03]
[1758149010177,39.59559401,244.44,244.42,0.03]
[1758149010378,77.89904263,244.44,244.42,0.03]
[1758149010597,45.89904263,244.44,244.42,0.03]
[1758149011102,78.59904263,244.44,244.42,0.03]
[1758149011494,82.7100261,244.44,244.42,0.03]
[1758149011799,44.69090062,244.44,244.42,0.03]
[1758149011997,83.81301284,244.44,244.42,0.03]
[1758149012408,44.69090062,244.44,244.42,0.03]
[1758149012605,50.37301284,244.44,244.42,0.03]
[1758149013212,51.03301284,244.44,244.42,0.03]
[1758149013393,43.97090062,244.44,244.42,0.03]
[1758149013594,50.37301284,244.44,244.42,0.03]
[1758149013892,51.03301284,244.44,244.42,0.03]
[1758149014090,39.87991715,244.44,244.42,0.03]
[1758149014287,46.28202937,244.44,244.42,0.03]
[1758149016303,6.40211222,244.44,244.42,0.03]
[1758149016506,20.0,244.57,244.42,0.03]
[1758149016507,13.59559401,244.53,244.43,0.74]
[1758149016684,6.40211222,244.47,244.43,0.74]
[1758149017093,6.40211222,244.47,244.44,0.71]
[1758149017404,6.40211222,244.47,244.45,0.71]
[1758149017602,6.40211222,244.47,244.45,4.8007786]
[1758149017815,6.40211222,244.47,244.46,0.71]
[1758149018589,6.40211222,244.48,244.46,0.71]
[1758149018783,46.31559401,244.53,244.46,0.71]
[1758149018784,0.28432314,244.52,244.46,0.71]
[1758149019000,26.0,244.55,244.45,4.09080748]
[1758149019001,0.06,244.47,244.45,4.09080748]
[1758149019485,0.06,244.47,244.46,0.71]
[1758149019794,0.06,244.47,244.45,0.71]
[1758149020109,0.06,244.47,244.43,4.12111967]
[1758149020110,6.40211222,244.46,244.43,0.03]
[1758149020291,6.40211222,244.44,244.43,0.03]
[1758149021303,7.06211222,244.44,244.43,0.03]
[1758149021692,10.49309569,244.44,244.43,0.03]
[1758149022187,6.40211222,244.44,244.43,0.03]
[1758149022582,26.72,244.47,244.43,0.03]
[1758149022787,6.40211222,244.45,244.43,0.74]
[1758149023609,6.40211222,244.45,244.43,0.03]
[1758149023888,0.06,244.47,244.44,7.11211222]
[1758149024108,0.06,244.47,244.45,0.71]
[1758149024314,0.06,244.47,244.43,0.03]
[1758149024515,0.06,244.47,244.43,0.74]
[1758149024698,0.06,244.47,244.43,0.03]
[1758149025023,0.06,244.47,244.44,0.71]
[1758149025195,0.06,244.47,244.45,0.71]
[1758149025621,6.40211222,244.46,244.43,0.03]
[1758149025793,6.40211222,244.44,244.43,0.03]
[1758149025992,6.40211222,244.46,244.43,0.03]
[1758149026437,6.40211222,244.45,244.43,0.03]
[1758149028608,7.06211222,244.44,244.43,0.03]
[1758149028805,20.94202937,244.44,244.43,0.03]
[1758149030316,17.97090062,244.44,244.43,0.03]
[1758149030505,24.37301284,244.44,244.43,0.03]
[1758149030824,10.49309569,244.44,244.43,0.03]
[1758149031320,4.09098347,244.44,244.43,0.03]
[1758149031528,10.49309569,244.44,244.43,0.03]
[1758149031830,8.5132256,244.44,244.43,0.03]
[1758149032328,9.1732256,244.44,244.43,0.03]
[1758149032903,9.45754874,244.44,244.43,0.03]
[1758149035422,5.03530661,244.44,244.43,0.03]
[1758149035627,9.45754874,244.44,244.43,0.03]
[1758149038944,23.05314275,244.44,244.43,0.03]
[1758149040231,13.87991715,244.43,244.4,0.03]
[1758149040533,4.70656527,244.41,244.4,0.03]
[1758149040840,8.79805088,244.41,244.4,0.03]
[1758149041042,9.45805088,244.41,244.4,0.03]
[1758149042534,4.09098944,244.44,244.4,0.71]
[1758149042720,4.09098944,244.44,244.41,0.68]
[1758149043029,4.42224213,244.42,244.4,0.03]
[1758149043209,4.42224213,244.41,244.4,0.03]
[1758149043810,0.06,244.45,244.4,0.71]
[1758149044038,0.06,244.45,244.4,5.13224213]
[1758149044238,0.06,244.45,244.41,0.68]
[1758149045026,0.06,244.45,244.41,5.10224213]
[1758149045334,0.06,244.45,244.42,0.68]
[1758149045720,0.06,244.45,244.43,0.68]
[1758149046134,0.06,244.45,244.44,0.68]
[1758149046334,0.06,244.45,244.44,5.10224213]
[1758149047838,0.06,244.45,244.44,4.77098347]
[1758149048134,0.06,244.45,244.44,9.1932256]
[1758149051848,9.2730756,244.45,244.4,0.03]
[1758149052035,4.42224213,244.41,244.4,0.03]
[1758149053124,8.51372774,244.41,244.4,0.03]
[1758149053315,9.21372774,244.41,244.4,0.03]
[1758149055628,23.09364489,244.41,244.4,0.03]
[1758149058320,25.84341532,244.41,244.4,0.03]
[1758149059133,55.79364489,244.41,244.4,0.03]
[1758149059332,58.54312359,244.41,244.4,0.03]
[1758149060847,58.54266062,244.41,244.4,0.03]
[1758149061226,25.84266062,244.41,244.4,0.03]
[1758149061427,58.54266062,244.41,244.4,0.03]
[1758149061752,4.42224213,244.41,244.4,0.03]
[1758149062129,5.12224213,244.41,244.4,0.03]
[1758149062339,19.00215928,244.41,244.4,0.03]
[1758149064449,23.09364489,244.41,244.4,0.03]
[1758149064856,25.84198728,244.41,244.4,0.03]
[1758149068147,18.67140276,244.41,244.4,0.03]
[1758149068356,55.09364489,244.41,244.4,0.03]
[1758149068651,55.79364489,244.41,244.4,0.03]
[1758149070253,58.5412629,244.41,244.4,0.03]
[1758149071050,17.97140276,244.41,244.4,0.03]
[1758149071252,22.39364489,244.41,244.4,0.03]
[1758149071445,8.79805088,244.41,244.4,0.03]
[1758149072452,8.51372774,244.41,244.4,0.03]
[1758149073148,8.51372774,244.41,244.4,0.71]
[1758149073856,8.51372774,244.41,244.4,0.03]
[1758149074858,9.23372774,244.41,244.4,0.03]
[1758149075047,8.51372774,244.41,244.4,0.03]
[1758149075760,5.79042515,244.41,244.4,0.03]